fUST/lending_fUST_20240517
["ID","MTS","AMOUNT","RATE_DAILY","PERIOD"]
[327200642,1715895033976,-238.60242952,0.00016436,2]
[327200643,1715895033987,-909.01656904,0.00016436,2]
[327200644,1715895033998,-447.49704798,0.00016436,2]
[327200645,1715895034008,-248.89656506,0.00016436,2]
[327200646,1715895034018,-236.36877291,0.00016437,2]
[327200647,1715895034029,-500.0,0.00016438,2]
[327200648,1715895034039,-806.12,0.00016438,2]
[327200649,1715895034050,-500.0,0.00016438,2]
[327200650,1715895034060,-539.98,0.00016438,2]
[327200651,1715895034070,-500.0,0.00016438,2]
[327200652,1715895034082,-1053.04,0.00016438,2]
[327200653,1715895034093,-500.0,0.00016438,2]
[327200654,1715895034106,-500.0,0.00016438,2]
[327200655,1715895034117,-500.0,0.00016438,2]
[327200656,1715895034128,-500.0,0.00016438,2]
[327200657,1715895034139,-500.0,0.00016438,2]
[327200658,1715895034151,-500.0,0.00016438,2]
[327200659,1715895034160,-714.52,0.00016438,2]
[327200660,1715895034171,-500.0,0.00016438,2]
[327200661,1715895034180,-500.0,0.00016438,2]
[327200662,1715895034192,-500.0,0.00016438,2]
[327200663,1715895034204,-500.0,0.00016438,2]
[327200664,1715895034215,-500.0,0.00016438,2]
[327200665,1715895034226,-5.80512752,0.00016438,2]
[327200701,1715895038491,-492.7178496,0.00015506,2]
[327200703,1715895038501,-494.19487248,0.00016438,2]
[327200705,1715895038510,-676.35,0.00016438,2]
[327200707,1715895038519,-500.0,0.00016438,2]
[327200709,1715895038528,-558.39,0.00016438,2]
[327200711,1715895038537,-500.0,0.00016438,2]
[327200713,1715895038546,-333.09346722,0.00016438,2]
[327200812,1715895040722,-166.90653278,0.00016438,2]
[327200813,1715895040732,-331.47846722,0.00016438,2]
[327200838,1715895043573,-431.50153278,0.00016438,2]
[327200839,1715895043583,-500.0,0.00016438,2]
[327200840,1715895043592,-449.29406267,0.00016438,2]
[327200841,1715895043605,-570.87558686,0.00016438,2]
[327200842,1715895043615,-500.0,0.00016438,2]
[327200843,1715895043624,-500.0,0.00016438,2]
[327200844,1715895043633,-500.0,0.00016438,2]
[327200845,1715895043643,-500.0,0.00016438,2]
[327200846,1715895043652,-260.75173211,0.00016438,2]
[327200847,1715895043661,-500.0,0.00016438,2]
[327200848,1715895043672,-12.68482307,0.00016438,2]
[327200849,1715895043737,-712.60517693,0.00016438,2]
[327200850,1715895043748,-477.1324746,0.00016438,2]
[327200851,1715895043760,-22.8675254,0.00016438,2]
[327200852,1715895043770,-500.0,0.00016438,2]
[327200853,1715895043779,-500.0,0.00016438,2]
[327200854,1715895043789,-500.0,0.00016438,2]
[327200855,1715895043799,-987.88,0.00016438,2]
[327200856,1715895043809,-439.6524746,0.00016438,2]
[327200868,1715895046567,-2259.4949604,0.00016045,2]
[327200869,1715895046576,-60.3475254,0.00016438,2]
[327200871,1715895046585,-500.0,0.00016438,2]
[327200872,1715895046594,-908.58,0.00016438,2]
[327200873,1715895046604,-838.15,0.00016438,2]
[327200874,1715895046614,-500.0,0.00016438,2]
[327200875,1715895046623,-500.0,0.00016438,2]
[327200876,1715895046632,-500.0,0.00016438,2]
[327200877,1715895046641,-1054.88778738,0.00016438,2]
[327200898,1715895230635,3000.0,0.0002,30]
[327200899,1715895231578,3000.0,0.0002001,30]
[327200900,1715895232593,3000.0,0.0002002,30]
[327200901,1715895233379,3000.0,0.0002003,30]
[327200902,1715895234112,3000.0,0.0002004,30]
[327200903,1715895235097,3000.0,0.0002005,30]
[327200904,1715895236039,3000.0,0.0002006,30]
[327200905,1715895237842,3000.0,0.0002007,30]
[327200906,1715895238429,3000.0,0.0002008,30]
[327200907,1715895239148,3000.0,0.0002009,30]
[327200908,1715895240186,3000.0,0.000201,30]
[327200909,1715895241150,3000.0,0.0002011,30]
[327200910,1715895241916,3000.0,0.0002012,30]
[327200911,1715895242611,5145.704399,0.0002013,30]
[327200915,1715895452409,150.77383924,0.00023004,120]
[327200916,1715895801461,3000.0,0.0002,30]
[327200917,1715895801896,3000.0,0.0002001,30]
[327200918,1715895802285,3000.0,0.0002002,30]
[327200919,1715895802952,3000.0,0.0002003,30]
[327200920,1715895803378,3000.0,0.0002004,30]
[327200921,1715895803781,3000.0,0.0002005,30]
[327200922,1715895804093,3000.0,0.0002006,30]
[327200923,1715895804533,3000.0,0.0002007,30]
[327200924,1715895804973,3000.0,0.0002008,30]
[327200925,1715895805372,3000.0,0.0002009,30]
[327200926,1715895805791,3000.0,0.000201,30]
[327200927,1715895806216,3000.0,0.0002011,30]
[327200928,1715895806677,3000.0,0.0002012,30]
[327200929,1715895806939,5145.704399,0.0002013,30]
[327200931,1715895849901,150.78889555,0.00022958,120]
[327200932,1715895937179,-199.860179,0.0001578,2]
[327200933,1715895937203,-10791.88248242,0.00016438,3]
[327200934,1715895937224,-772.53,0.00016438,2]
[327200935,1715895937245,-1009.16,0.00016438,2]
[327200936,1715895937267,-500.0,0.00016438,2]
[327200937,1715895937288,-500.0,0.00016438,2]
[327200938,1715895937310,-517.49,0.00016438,2]
[327200939,1715895937331,-500.0,0.00016438,2]
[327200940,1715895937353,-500.0,0.00016438,2]
[327200941,1715895937374,-500.0,0.00016438,2]
[327200942,1715895937396,-500.0,0.00016438,2]
[327200943,1715895937418,-500.0,0.00016438,2]
[327200944,1715895937440,-500.0,0.00016438,2]
[327200945,1715895937462,-684.75,0.00016438,2]
[327200946,1715895937483,-175.78975849,0.00016438,2]
[327200947,1715895937505,-1253.66,0.00016438,2]
[327200948,1715895937528,-339.27914449,0.00016438,2]
[327200949,1715895937551,-500.0,0.00016438,2]
[327200950,1715895937577,-500.0,0.00016438,2]
[327200951,1715895937599,-1759.8,0.00016438,2]
[327200952,1715895937622,-500.0,0.00016438,2]
[327200953,1715895937646,-500.0,0.00016438,2]
[327200954,1715895937669,-500.0,0.00016438,2]
[327200955,1715895937691,-500.0,0.00016438,2]
[327200956,1715895937714,-500.0,0.00016438,2]
[327200957,1715895937738,-500.0,0.00016438,2]
[327200958,1715895937761,-1368.06,0.00016438,2]
[327200959,1715895937783,-500.0,0.00016438,2]
[327200960,1715895937804,-500.0,0.00016438,2]
[327200961,1715895937827,-1094.84,0.00016438,2]
[327200962,1715895937850,-500.0,0.00016438,2]
[327200963,1715895937871,-500.0,0.00016438,2]
[327200964,1715895938110,-1242.73,0.00016438,2]
[327200965,1715895938132,-500.0,0.00016438,2]
[327200966,1715895938152,-500.0,0.00016438,2]
[327200967,1715895938172,-500.0,0.00016438,2]
[327200968,1715895938192,-500.0,0.00016438,2]
[327200969,1715895938212,-500.0,0.00016438,2]
[327200970,1715895938231,-500.0,0.00016438,2]
[327200971,1715895938250,-500.0,0.00016438,2]
[327200972,1715895938270,-637.98,0.00016438,2]
[327200973,1715895938289,-500.0,0.00016438,2]
[327200974,1715895938309,-500.0,0.00016438,2]
[327200975,1715895938330,-500.0,0.00016438,2]
[327200976,1715895938350,-500.0,0.00016438,2]
[327200977,1715895938369,-500.0,0.00016438,2]
[327200978,1715895938388,-500.0,0.00016438,2]
[327200979,1715895938407,-500.0,0.00016438,2]
[327200980,1715895938426,-500.0,0.00016438,2]
[327200981,1715895938444,-500.0,0.00016438,2]
[327200982,1715895938464,-500.0,0.00016438,2]
[327200983,1715895938484,-648.17,0.00016438,2]
[327200984,1715895938504,-500.0,0.00016438,2]
[327200985,1715895938524,-500.0,0.00016438,2]
[327200986,1715895938542,-500.0,0.00016438,2]
[327200987,1715895938563,-535.13,0.00016438,2]
[327200988,1715895938586,-500.0,0.00016438,2]
[327200989,1715895938607,-500.0,0.00016438,2]
[327200990,1715895938626,-500.0,0.00016438,2]
[327200991,1715895938646,-500.0,0.00016438,2]
[327200992,1715895938668,-500.0,0.00016438,2]
[327200993,1715895938687,-731.19,0.00016438,2]
[327200994,1715895938708,-500.0,0.00016438,2]
[327200995,1715895938731,-6130.64728601,0.00016438,2]
[327200996,1715896036095,-399.89656506,0.00016238,2]
[327200997,1715896045093,-164.85398261,0.00016238,2]
[327200998,1715896045114,-247.56693896,0.00016338,2]
[327200999,1715896045134,-305.3296261,0.00016438,2]
[327201085,1715896238964,-194.6703739,0.00016438,2]
[327201087,1715896238973,-522.71329836,0.00016438,2]
[327201089,1715896238983,-500.0,0.00016438,2]
[327201090,1715896238993,-500.0,0.00016438,2]
[327201093,1715896239004,-500.0,0.00016438,2]
[327201095,1715896239013,-500.0,0.00016438,2]
[327201097,1715896239022,-159.22571802,0.00016438,2]
[327201098,1715896239031,-500.0,0.00016438,2]
[327201101,1715896239041,-500.0,0.00016438,2]
[327201103,1715896239051,-666.1,0.00016438,2]
[327201105,1715896239060,-500.0,0.00016438,2]
[327201106,1715896239069,-500.0,0.00016438,2]
[327201109,1715896239078,-500.0,0.00016438,2]
[327201110,1715896239088,-500.0,0.00016438,2]
[327201113,1715896239097,-500.0,0.00016438,2]
[327201114,1715896239107,-500.0,0.00016438,2]
[327201117,1715896239116,-425.203698,0.00016438,2]
[327201119,1715896239130,-521.516302,0.00016438,2]
[327201121,1715896239139,-500.0,0.00016438,2]
[327201123,1715896239149,-500.0,0.00016438,2]
[327201125,1715896239158,-500.0,0.00016438,2]
[327201127,1715896239167,-500.0,0.00016438,2]
[327201129,1715896239176,-500.0,0.00016438,2]
[327201131,1715896239185,-347.05865105,0.00016438,2]
[327201135,1715896239213,-152.94134895,0.00016438,2]
[327201137,1715896239222,-500.0,0.00016438,2]
[327201139,1715896239231,-500.0,0.00016438,2]
[327201141,1715896239240,-500.0,0.00016438,2]
[327201143,1715896239249,-2.55787637,0.00016438,2]
[327201145,1715896239260,-868.16212363,0.00016438,2]
[327201147,1715896239269,-803.23,0.00016438,2]
[327201149,1715896239278,-500.0,0.00016438,2]
[327201151,1715896239288,-500.0,0.00016438,2]
[327201153,1715896239296,-1543.47,0.00016438,2]
[327201155,1715896239305,-500.0,0.00016438,2]
[327201157,1715896239315,-1306.91,0.00016438,2]
[327201159,1715896239325,-500.0,0.00016438,2]
[327201161,1715896239334,-1797.07,0.00016438,2]
[327201163,1715896239344,-500.0,0.00016438,2]
[327201165,1715896239353,-1704.4,0.00016438,2]
[327201167,1715896239362,-500.0,0.00016438,2]
[327201169,1715896239371,-1192.8,0.00016438,2]
[327201171,1715896239381,-635.34,0.00016438,2]
[327201173,1715896239390,-783.52,0.00016438,2]
[327201175,1715896239399,-500.0,0.00016438,2]
[327201177,1715896239409,-500.0,0.00016438,2]
[327201179,1715896239418,-500.0,0.00016438,2]
[327201181,1715896239427,-500.0,0.00016438,2]
[327201183,1715896239437,-620.06,0.00016438,2]
[327201185,1715896239446,-500.0,0.00016438,2]
[327201187,1715896239455,-923.15,0.00016438,2]
[327201189,1715896239465,-500.0,0.00016438,2]
[327201191,1715896239474,-500.0,0.00016438,2]
[327201193,1715896239484,-500.0,0.00016438,2]
[327201195,1715896239494,-500.0,0.00016438,2]
[327201197,1715896239503,-500.0,0.00016438,2]
[327201199,1715896239512,-500.0,0.00016438,2]
[327201201,1715896239521,-500.0,0.00016438,2]
[327201203,1715896239530,-500.0,0.00016438,2]
[327201205,1715896239539,-500.0,0.00016438,2]
[327201207,1715896239548,-1201.43,0.00016438,2]
[327201208,1715896239557,-500.0,0.00016438,2]
[327201211,1715896239567,-740.34,0.00016438,2]
[327201213,1715896239576,-1223.77,0.00016438,2]
[327201215,1715896239586,-500.0,0.00016438,2]
[327201217,1715896239596,-500.0,0.00016438,2]
[327201219,1715896239605,-1141.89,0.00016438,2]
[327201221,1715896239614,-500.0,0.00016438,2]
[327201222,1715896239623,-1686.48,0.00016438,2]
[327201224,1715896239632,-500.0,0.00016438,2]
[327201226,1715896239641,-575.76054626,0.00016438,2]
[327201279,1715896244455,-391.34945374,0.00016438,2]
[327201280,1715896244465,-531.03,0.00016438,2]
[327201281,1715896244474,-500.0,0.00016438,2]
[327201282,1715896244483,-2526.87,0.00016438,2]
[327201283,1715896244492,-500.0,0.00016438,2]
[327201284,1715896244502,-500.0,0.00016438,2]
[327201285,1715896244511,-1477.31,0.00016438,2]
[327201286,1715896244520,-500.0,0.00016438,2]
[327201287,1715896244529,-500.0,0.00016438,2]
[327201288,1715896244539,-4895.12300674,0.00016438,2]
[327201338,1715896248729,-216.62107159,0.00016338,2]
[327201340,1715896248739,-23196.30699326,0.00016438,2]
[327201342,1715896248752,-500.0,0.00016438,2]
[327201344,1715896248762,-3030.26,0.00016438,2]
[327201346,1715896248771,-3969.81,0.00016438,2]
[327201348,1715896248780,-616.39,0.00016438,2]
[327201350,1715896248790,-500.0,0.00016438,2]
[327201352,1715896248799,-500.0,0.00016438,2]
[327201354,1715896248808,-500.0,0.00016438,2]
[327201356,1715896248817,-500.0,0.00016438,2]
[327201357,1715896248827,-6971.65,0.00016438,2]
[327201359,1715896248837,-500.0,0.00016438,2]
[327201361,1715896248846,-1080.47,0.00016438,2]
[327201363,1715896248855,-2580.91,0.00016438,2]
[327201365,1715896248864,-1311.06,0.00016438,2]
[327201367,1715896248874,-500.0,0.00016438,2]
[327201369,1715896248883,-500.0,0.00016438,2]
[327201371,1715896248892,-500.0,0.00016438,2]
[327201373,1715896248901,-773.13,0.00016438,2]
[327201375,1715896248911,-3332.97,0.00016438,2]
[327201377,1715896248920,-1049.22,0.00016438,2]
[327201379,1715896248929,-1924.62,0.00016438,2]
[327201381,1715896248939,-1147.44,0.00016438,2]
[327201383,1715896248949,-500.0,0.00016438,2]
[327201385,1715896248958,-500.0,0.00016438,2]
[327201387,1715896248967,-500.0,0.00016438,2]
[327201389,1715896248976,-500.0,0.00016438,2]
[327201391,1715896248986,-1190.95,0.00016438,2]
[327201393,1715896248995,-500.0,0.00016438,2]
[327201395,1715896249005,-778.29,0.00016438,2]
[327201397,1715896249014,-500.0,0.00016438,2]
[327201399,1715896249023,-2885.36052738,0.00016438,2]
[327201416,1715896398949,3000.0,0.0002,30]
[327201417,1715896399374,3000.0,0.0002001,30]
[327201418,1715896399834,3000.0,0.0002002,30]
[327201419,1715896400375,3000.0,0.0002003,30]
[327201420,1715896400892,3000.0,0.0002004,30]
[327201421,1715896401436,3000.0,0.0002005,30]
[327201422,1715896401902,3000.0,0.0002006,30]
[327201423,1715896402501,3000.0,0.0002007,30]
[327201424,1715896402878,3000.0,0.0002008,30]
[327201425,1715896403450,3000.0,0.0002009,30]
[327201426,1715896403817,3000.0,0.000201,30]
[327201427,1715896404393,3000.0,0.0002011,30]
[327201428,1715896404779,3000.0,0.0002012,30]
[327201429,1715896405189,5145.704399,0.0002013,30]
[327201431,1715896615732,346.42,0.00010959,2]
[327201432,1715896667575,173.21,0.00010959,2]
[327201433,1715896802004,539.48,0.00010959,2]
[327201435,1715896863873,539.5,0.00010959,2]
[327201436,1715896994539,3000.0,0.0002,30]
[327201437,1715896995101,3000.0,0.0002001,30]
[327201438,1715896995688,3000.0,0.0002002,30]
[327201439,1715896996390,3000.0,0.0002003,30]
[327201440,1715896997033,3000.0,0.0002004,30]
[327201441,1715896997686,3000.0,0.0002005,30]
[327201442,1715896998161,3000.0,0.0002006,30]
[327201443,1715896998664,3000.0,0.0002007,30]
[327201444,1715896999246,3091.509936,0.0002008,30]
[327201445,1715897146094,-15108.0788395,0.00015372,2]
[327201446,1715897239106,-392.15695449,0.00015372,2]
[327201447,1715897250095,-673.86447895,0.00015372,2]
[327201448,1715897352085,-426.96511952,0.00015272,2]
[327202139,1715897438269,-271.09902032,0.00015372,2]
[327202141,1715897438280,-1356.02046994,0.00015372,2]
[327202143,1715897438289,-246.300072,0.00015392,2]
[327202145,1715897438299,-920.66286967,0.00015614,2]
[327202147,1715897438309,-495.0,0.00016164,2]
[327202149,1715897438318,-150.0,0.00016164,2]
[327202151,1715897438327,-1647.01590178,0.00016232,2]
[327202153,1715897438336,-189.54343765,0.00016338,2]
[327202155,1715897438346,-1094.19937552,0.00016436,2]
[327202157,1715897438356,-1358.53942485,0.00016436,2]
[327202178,1715897438535,-242.04899326,0.00016436,2]
[327202180,1715897438545,-1896.23906673,0.00016436,2]
[327202182,1715897438554,-1337.93312201,0.00016436,2]
[327202184,1715897438564,-817.58871518,0.00016436,2]
[327202186,1715897438573,-207.09583742,0.00016437,2]
[327202188,1715897438583,-156.14987174,0.00016438,2]
[327202190,1715897438593,-500.0,0.00016438,2]
[327202192,1715897438603,-633.38668216,0.00016438,2]
[327202194,1715897438612,-500.0,0.00016438,2]
[327202196,1715897438621,-150.50260669,0.00016438,2]
[327202198,1715897438630,-500.0,0.00016438,2]
[327202200,1715897438639,-500.0,0.00016438,2]
[327202202,1715897438649,-500.0,0.00016438,2]
[327202204,1715897438658,-500.0,0.00016438,2]
[327202206,1715897438667,-500.0,0.00016438,2]
[327202208,1715897438676,-500.0,0.00016438,2]
[327202210,1715897438686,-638.0753109,0.00016438,2]
[327202212,1715897438695,-500.0,0.00016438,2]
[327202214,1715897438705,-500.0,0.00016438,2]
[327202216,1715897438714,-500.0,0.00016438,2]
[327202218,1715897438723,-500.0,0.00016438,2]
[327202220,1715897438732,-500.0,0.00016438,2]
[327202222,1715897438741,-500.0,0.00016438,2]
[327202224,1715897438751,-500.0,0.00016438,2]
[327202226,1715897438761,-500.0,0.00016438,2]
[327202228,1715897438770,-500.0,0.00016438,2]
[327202230,1715897438779,-639.99,0.00016438,2]
[327202232,1715897438788,-500.0,0.00016438,2]
[327202234,1715897438797,-1005.5,0.00016438,2]
[327202236,1715897438806,-357.36638848,0.00016438,2]
[327202699,1715897443296,-142.63361152,0.00016438,2]
[327202701,1715897443306,-500.0,0.00016438,2]
[327202703,1715897443318,-1141.32,0.00016438,2]
[327202705,1715897443328,-227.21197337,0.00016438,2]
[327202707,1715897443337,-500.0,0.00016438,2]
[327202709,1715897443346,-500.0,0.00016438,2]
[327202710,1715897443355,-500.0,0.00016438,2]
[327202712,1715897443364,-500.0,0.00016438,2]
[327202714,1715897443373,-673.77,0.00016438,2]
[327202716,1715897443383,-500.0,0.00016438,2]
[327202718,1715897443392,-500.0,0.00016438,2]
[327202720,1715897443402,-500.0,0.00016438,2]
[327202722,1715897443411,-709.49,0.00016438,2]
[327202724,1715897443420,-500.0,0.00016438,2]
[327202726,1715897443429,-500.0,0.00016438,2]
[327202728,1715897443439,-500.0,0.00016438,2]
[327202730,1715897443448,-177.45,0.00016438,2]
[327202732,1715897443457,-500.0,0.00016438,2]
[327202734,1715897443466,-500.0,0.00016438,2]
[327202737,1715897443475,-279.60453826,0.00016438,2]
[327202739,1715897443484,-700.72,0.00016438,2]
[327202741,1715897443493,-500.0,0.00016438,2]
[327202743,1715897443502,-500.0,0.00016438,2]
[327202745,1715897443511,-926.82,0.00016438,2]
[327202747,1715897443520,-500.0,0.00016438,2]
[327202750,1715897443530,-500.0,0.00016438,2]
[327202752,1715897443539,-500.0,0.00016438,2]
[327202754,1715897443548,-405.09102295,0.00016438,2]
[327203207,1715897448139,-262.21897705,0.00016438,2]
[327203209,1715897448148,-557.77,0.00016438,2]
[327203211,1715897448157,-180.01102295,0.00016438,2]
[327204660,1715897593456,150.0,0.0002,30]
[327204661,1715897872694,1137.6236091,9.999e-05,2]
[327204662,1715897908896,281.46388118,9.999e-05,2]
[327204663,1715897924883,281.46388118,9.999e-05,2]
[327204664,1715897935322,154.721501,0.0001,2]
[327204665,1715897940887,415.61630529,9.999e-05,2]
[327204666,1715898151588,1450.07697924,0.0001,2]
[327204667,1715898340159,-9744.86825,0.00015412,2]
[327204668,1715898340180,-1450.07697924,0.00015416,2]
[327204669,1715898340201,-314.811902,0.00015417,2]
[327204670,1715898340221,-466.73096825,0.00016273,2]
[327204671,1715898340241,-1243.39690247,0.000164,2]
[327204672,1715898340262,-2106.16453209,0.00016436,2]
[327204673,1715898340282,-315.84581765,0.00016436,2]
[327204674,1715898340302,-154.84515485,0.00016436,2]
[327204675,1715898340322,-158.37912869,0.00016436,2]
[327204676,1715898340347,-154.84515485,0.00016436,2]
[327204677,1715898340366,-236.36877291,0.00016436,2]
[327204678,1715898340387,-154.84515485,0.00016436,2]
[327204679,1715898340407,-1007.86899792,0.00016436,2]
[327204680,1715898340430,-492.60126015,0.00016436,2]
[327204681,1715898340449,-154.84515485,0.00016436,2]
[327204682,1715898340471,-180.04758546,0.00016437,2]
[327204683,1715898340490,-5395.94124121,0.00016438,3]
[327204684,1715898340511,-500.0,0.00016438,2]
[327204685,1715898340531,-500.0,0.00016438,2]
[327204686,1715898340552,-500.0,0.00016438,2]
[327204687,1715898340572,-500.0,0.00016438,2]
[327204688,1715898340592,-344.91685889,0.00016438,2]
[327204689,1715898340614,-500.0,0.00016438,2]
[327204690,1715898340634,-500.0,0.00016438,2]
[327204691,1715898340655,-500.0,0.00016438,2]
[327204692,1715898340675,-500.0,0.00016438,2]
[327204693,1715898340695,-500.0,0.00016438,2]
[327204694,1715898340714,-500.0,0.00016438,2]
[327204695,1715898340734,-477.32184635,0.00016438,2]
[327204696,1715898340754,-500.0,0.00016438,2]
[327204697,1715898340773,-769.76,0.00016438,2]
[327204698,1715898340792,-500.0,0.00016438,2]
[327204699,1715898340813,-805.75479209,0.00016438,2]
[327204700,1715898449081,-710.90455551,0.00015411,2]
[327204701,1715898453098,-521.24896092,0.00015411,2]
[327204830,1715898638317,-985.47,0.0001533,2]
[327205382,1715898643966,-1450.07697924,0.00015329,2]
[327205384,1715898643975,-379.7571626,0.0001533,2]
[327205386,1715898643984,-1752.62349995,0.00015437,2]
[327210569,1715899072761,1450.07697924,0.0001,2]
[327210570,1715899185492,273.37336231,9.9e-05,2]
[327210571,1715899192920,154.78330338,9.999e-05,2]
[327210572,1715899194281,273.37336231,9.9e-05,2]
[327210573,1715899195688,364.69742493,0.0001,2]
[327210574,1715899202923,273.37336231,9.9e-05,2]
[327210575,1715899211390,273.37336231,9.9e-05,2]
[327210576,1715899213688,167.55903202,0.0001,2]
[327210577,1715899220073,273.37336231,9.9e-05,2]
[327210578,1715899228020,273.37336231,9.9e-05,2]
[327210579,1715899236792,273.37336231,9.9e-05,2]
[327210580,1715899240470,154.78330338,9.999e-05,2]
[327210581,1715899244885,273.37336231,9.9e-05,2]
[327210582,1715899505812,1450.07697924,0.0001,2]
[327210583,1715899559120,-732.661589,0.00015149,2]
[327210584,1715899559141,-8340.65635407,0.00015416,2]
[327210585,1715899639082,-1450.07697924,0.00015315,2]
[327210586,1715899639102,-94.06356843,0.00015316,2]
[327210587,1715899640090,-470.68697924,0.00015316,2]
[327210588,1715899640116,-845.17599458,0.00015417,2]
[327210596,1715899832596,-1450.07697924,0.00015416,2]
[327210598,1715899832607,-14758.61268732,0.00015417,2]
[327210600,1715899832616,-366.330794,0.00015437,2]
[327210602,1715899832625,-271.98163398,0.00016336,2]
[327210603,1715899832634,-2697.9706206,0.00016436,3]
[327210604,1715899832645,-260.91918383,0.00016436,2]
[327210605,1715899832654,-302.87969658,0.00016436,2]
[327210606,1715899832663,-188.84587423,0.00016436,2]
[327210607,1715899832673,-518.22998326,0.00016436,2]
[327210608,1715899832682,-155.04245259,0.00016436,2]
[327210609,1715899832692,-1682.5168572,0.00016436,2]
[327210610,1715899832701,-5155.84828199,0.00016436,2]
[327210611,1715899832711,-214.65559847,0.00016436,2]
[327210612,1715899832720,-3060.26446828,0.00016436,2]
[327210613,1715899832730,-330.73596989,0.00016436,2]
[327210614,1715899832739,-248.78899276,0.00016436,2]
[327210615,1715899832748,-154.92364573,0.00016436,2]
[327210616,1715899832757,-157.27495146,0.00016436,2]
[327210617,1715899832768,-154.84515485,0.00016437,2]
[327210618,1715899832778,-154.84515485,0.00016437,2]
[327210619,1715899832788,-656.22,0.00016438,2]
[327210620,1715899832802,-405.26274595,0.00016438,2]
[327210621,1715899832812,-500.0,0.00016438,2]
[327210622,1715899832821,-500.0,0.00016438,2]
[327210623,1715899832831,-500.0,0.00016438,2]
[327210624,1715899832841,-176.64003449,0.00016438,2]
[327210625,1715899832850,-151.0,0.00016438,2]
[327210626,1715899832860,-151.0,0.00016438,2]
[327210627,1715899832871,-500.0,0.00016438,2]
[327210628,1715899832880,-151.0,0.00016438,2]
[327210629,1715899832890,-500.0,0.00016438,2]
[327210630,1715899832900,-342.02290313,0.00016438,2]
[327210631,1715899832910,-500.0,0.00016438,2]
[327210632,1715899832919,-151.0,0.00016438,2]
[327210633,1715899832928,-151.0,0.00016438,2]
[327210634,1715899832937,-151.0,0.00016438,2]
[327210635,1715899832947,-151.0,0.00016438,2]
[327210636,1715899832956,-151.0,0.00016438,2]
[327210637,1715899832966,-151.0,0.00016438,2]
[327210638,1715899832975,-500.0,0.00016438,2]
[327210639,1715899832984,-155.96855181,0.00016438,2]
[327210640,1715899832993,-1616.21,0.00016438,2]
[327210641,1715899833002,-355.43283807,0.00016438,2]
[327210689,1715899838618,-144.56716193,0.00016438,2]
[327210691,1715899838628,-500.0,0.00016438,2]
[327210693,1715899838638,-151.0,0.00016438,2]
[327210695,1715899838649,-151.0,0.00016438,2]
[327210697,1715899838658,-151.0,0.00016438,2]
[327210699,1715899838667,-151.0,0.00016438,2]
[327210701,1715899838677,-151.0,0.00016438,2]
[327210703,1715899838686,-348.83133752,0.00016438,2]
[327210705,1715899838696,-645.7,0.00016438,2]
[327210707,1715899838705,-500.0,0.00016438,2]
[327210709,1715899838714,-151.0,0.00016438,2]
[327210711,1715899838723,-151.0,0.00016438,2]
[327210713,1715899838732,-500.0,0.00016438,2]
[327210715,1715899838741,-85.97104414,0.00016438,2]
[327210718,1715899838754,-65.02895586,0.00016438,2]
[327210720,1715899838763,-151.0,0.00016438,2]
[327210722,1715899838772,-332.23313731,0.00016438,2]